Cogmind - Beta 12 @@@ ROGUE MODE // 2023.03.07 @ 23:13:12 Player: Bunch Result: Destroyed by G-47 Trooper with Particle Gun Performance ------------- Evolutions (0) 0 Regions Visited (1) 200 Robots Destroyed (9) 45 Value Destroyed (117) 117 Prototype IDs (0) 0 Alien Tech Used (0) 0 Bonus (0) 0 TOTAL SCORE: 362 Bonus ------- None Cogmind --------- Core Integrity 0/250 Matter 255/300 Energy 123/250 System Corruption 0% Temperature Cool (16) Movement Walking (120) Location -10/Materials Parts ------- > --- POWER (1) -------- Ion Engine > --- PROPULSION (2) --- Aluminum Leg > --- UTILITY (2) ------ Utility Shielding > --- WEAPON (2) ------- (None) > --- INVENTORY (5) ---- (None) Peak State ------------ > --- POWER ------------ Ion Engine > --- PROPULSION ------- Light Treads Light Treads > --- UTILITY ---------- Small Storage Unit Improved Terrain Scanner > --- WEAPON ----------- Medium Laser Assault Rifle > --- INVENTORY -------- Ion Engine Aluminum Leg Aluminum Leg [Rating: 9] Favorites ----------- Power Ion Engine Engine Ion Engine Propulsion Light Treads Treads Light Treads Leg Aluminum Leg Utility Improved Terrain Scanner Device Improved Terrain Scanner Storage Small Storage Unit Protection Utility Shielding Weapon Medium Laser Energy Gun Medium Laser Ballistic Gun Assault Rifle Build | -11 -10 ------- Run | Jun Mat Slots Evolved . | . . Power . | . . Propulsion . | . . Utility . | . . Weapon . | . . Parts Attached 14 | 8 6 Power 3 | 1 2 Engine 3 | 1 2 Core . | . . Reactor . | . . Propulsion 6 | 3 3 Treads 2 | 2 . Leg 4 | 1 3 Wheel . | . . Hover . | . . Flight . | . . Utility 3 | 2 1 Device 1 | 1 . Storage 1 | 1 . Processor . | . . Hackware . | . . Protection 1 | . 1 Artifact . | . . Weapon 2 | 2 . Energy Gun 1 | 1 . Energy Cannon . | . . Ballistic Gun 1 | 1 . Ballistic Cannon . | . . Launcher . | . . Special Weapon . | . . Impact Weapon . | . . Slashing Weapon . | . . Piercing Weapon . | . . Special Melee Weapon . | . . Unidentified Prototypes . | . . Parts Lost 6 | . 6 Power 1 | . 1 Propulsion 2 | . 2 Utility 1 | . 1 Weapon 2 | . 2 Highest Loss Streak 4 | . 4 To Critical Strikes . | . . Average Slot Usage (%) 92 | . 92 Engine 12 | . 12 Treads 26 | . 26 Leg 1 | . 1 Device 13 | . 13 Storage 5 | . 5 Protection 8 | . 8 Energy Gun 12 | . 12 Ballistic Gun 11 | . 11 Naked Turns . | . . Heaviest Build 15 | 15 15 Greatest Support 40 | 40 40 Greatest Overweight (x) . | . . Average Overweight (x) . | . . Largest Inventory Capacity 8 | 8 8 Average Capacity 6 | 7 6 Most Carried 5 | 5 4 Average Carried 2 | 2 2 Final Capacity 8 | 8 5 Final Carried 3 | 3 . Class Distribution -------------------- 100% | Mutant Dominant Class ---------------- Mutant | -10/Materials Resources | -11 -10 ----------- Run | Jun Mat Matter Collected 375 | 325 50 Remotely . | . . Salvage Created 259 | 169 90 Parts 18 | 14 4 Haulers Intercepted . | . . Recyclers Shooed 1 | 1 . Parts Field Recycled . | . . Retrieved Matter . | . . Parts Self-Destructed . | . . Prevented . | . . Kills | -11 -10 ------- Run | Jun Mat Combat Hostiles Destroyed 2 | . 2 Guns 2 | . 2 Classes Destroyed 4 | 3 1 Worker 2 | 2 . Tunneler 4 | 4 . Recycler 1 | 1 . Grunt 2 | . 2 Best Kill Streak 3 | 3 1 Combat Bots Only 1 | . 1 Max Kills in Single Turn 1 | 1 1 Gunslinging . | . . Exploded . | . . Melee . | . . Uniques/NPCs Destroyed . | . . Combat | -11 -10 -------- Run | Jun Mat Damage Taken 894 | . 894 Core 258 | . 258 Absorbed by Shields . | . . Redirected to Shielding 7 | . 7 Core Remaining (%) 100 | 100 . Volleys Fired 33 | 15 18 Largest 2 | 2 2 Hottest 70 | 70 70 Shots Fired 64 | 30 34 Gun 64 | 30 34 Cannon . | . . Launcher . | . . Special . | . . Kinetic 31 | 15 16 Thermal 33 | 15 18 Explosive . | . . Electromagnetic . | . . Robot Hit Streak 7 | 3 7 Robot Miss Streak 2 | 2 2 Penetration Max . | . . Secondary Targets . | . . Shots Hit Robots 39 | 14 25 Core Hits 18 | 8 10 Critical Kills . | . . Critical Parts Destroyed . | . . Critical Strikes 1 | . 1 Burn 1 | . 1 Melee Attacks . | . . Impact . | . . Slashing . | . . Piercing . | . . Sneak Attacks . | . . Combat Hostiles . | . . Follow-up Attacks . | . . Damage Inflicted 524 | 191 333 Guns 507 | 191 316 Cannons . | . . Explosions . | . . Melee . | . . Ramming 17 | . 17 Kinetic 226 | 77 149 Thermal 281 | 114 167 Explosive . | . . Electromagnetic . | . . Impact . | . . Slashing . | . . Piercing . | . . Highest Corruption . | . . Average Corruption . | . . Corruption Purged . | . . Corruption Blocked . | . . Overload Shots . | . . Overflow Damage . | . . Projectiles . | . . Explosions . | . . Melee . | . . Knockbacks . | . . Impact . | . . Kinetic . | . . Secondary . | . . Self-Inflicted Damage . | . . Shots . | . . Rammed 23 | . 23 Targets Rammed 23 | . 23 Kicked . | . . Crushed . | . . Highest Temperature 324 | 56 324 Average Temperature 106 | 18 164 Received Heat Transfer 546 | . 546 Effects 2 | . 2 Interference 2 | . 2 Siege Activations . | . . Robots Corrupted . | . . Combat Hostiles . | . . Parts Fried . | . . Impact Corruptions . | . . Robots Melted . | . . Combat Hostiles . | . . Parts Melted 2 | . 2 Heat Transferred 888 | 333 555 Parts Sabotaged . | . . Parts Stolen . | . . Parts Stripped . | . . Power Chain Reactions . | . . Missiles Intercepted . | . . Alert | -11 -10 ------- Run | Jun Mat Peak Influence 66 | 35 66 Initial 22 | . 22 Average 22 | 22 21 Maximum Alert Level . | . . Low Security (%) 100 | 100 100 Level 1 . | . . Level 2 . | . . Level 3 . | . . Level 4 . | . . Level 5 . | . . High Security . | . . Max Security . | . . Squads Dispatched 1 | . 1 Investigation . | . . Extermination . | . . Reinforcement 1 | . 1 Assault . | . . Garrison . | . . Intercept . | . . Searches Triggered . | . . Construction Impeded . | . . Haulers Reinforced . | . . Active Scanning Responses . | . . Cargo Convoy Interrupts . | . . Stealth | -11 -10 --------- Run | Jun Mat Distress Signals . | . . Communications Jammed . | . . Distress Signals . | . . Times Spotted 6 | . 6 Peak Tracking Total 4 | . 4 Tactical Retreats . | . . Traps | -11 -10 ------- Run | Jun Mat Traps Triggered 2 | . 2 Indirectly . | . . Trap Hack Attempts . | . . Triggered . | . . Disarmed . | . . Reprogrammed . | . . Reused . | . . Traps Extracted . | . . Installed . | . . Triggered . | . . Machines | -11 -10 ---------- Run | Jun Mat Machines Disabled . | . . Max in Single Turn . | . . Machines Repaired . | . . Machines Sabotaged . | . . Overloaded Fab Kills . | . . Hacking | -11 -10 --------- Run | Jun Mat Machines Accessed . | . . Terminals . | . . Fabricators . | . . Repair Stations . | . . Recycling Units . | . . Scanalyzers . | . . Garrison Access . | . . Total Hacks . | . . Successful . | . . Failed . | . . Catastrophic . | . . Database Lockouts . | . . Manual . | . . Terminals . | . . Fabricators . | . . Repair Stations . | . . Recycling Units . | . . Scanalyzers . | . . Garrison Access . | . . Terminal Hacks . | . . Fabricator Hacks . | . . Repair Station Hacks . | . . Recycling Unit Hacks . | . . Scanalyzer . | . . Garrison Access Hacks . | . . Unauthorized Hacks . | . . Terminals . | . . Fabricators . | . . Repair Stations . | . . Recycling Units . | . . Scanalyzers . | . . Garrison Access . | . . Data Cores Recovered . | . . Used . | . . Hacking Detections . | . . Full Trace Events . | . . Feedback Events . | . . Feedback Blocked . | . . Robot Schematics Acquired . | . . Robots Built . | . . Authchips . | . . Time . | . . Total Robot Build Rating . | . . Part Schematics Acquired . | . . Parts Built . | . . Authchips . | . . Time . | . . Total Part Build Rating . | . . Parts Repaired . | . . Time . | . . Parts Recycled . | . . Recycled Matter . | . . Retrieved Matter . | . . Retrieved Components . | . . Parts Scanalyzed . | . . Part Schematics Acquired . | . . Parts Damaged . | . . Bothacking | -11 -10 ------------ Run | Jun Mat Used RIF Installer . | . . Robots Hacked . | . . Non-combat . | . . Combat . | . . Robot Hacks Applied . | . . Relay Couplers Released . | . . Fabnet Peak Effective % . | . . Robots Rewired . | . . Allies Hacked . | . . Hacks Repelled . | . . Allies | -11 -10 -------- Run | Jun Mat Total Allies . | . . Largest Group . | . . Highest-Rated Group . | . . Highest-Rated Ally . | . . Total Orders . | . . Ally Attacks . | . . Total Damage . | . . Kills . | . . Allies Corrupted . | . . Allies Melted . | . . Intel | -11 -10 ------- Run | Jun Mat Robot Analysis Total . | . . Derelict Logs Recovered . | . . Drone Launches . | . . Drone Recoveries . | . . Exploration | -11 -10 ------------- Run | Jun Mat Turns Passed 1008 | 378 630 Spaces Moved 326 | 148 178 Core 56 | 43 13 Treads 243 | 105 138 Legs 27 | . 27 Wheels . | . . Hover . | . . Flight . | . . Fastest Speed 50 | 50 50 Average Speed 137 | 128 145 Slowest Speed 160 | 160 160 Overloaded Moves . | . . Propulsion Burnouts . | . . Robots Hopped . | . . Cave-ins Triggered . | . . Exploration Rate (%) 20 | 13 28 Regions Visited 1 Branch Regions . Pre-discovered Areas . | . . Known Exits Taken . | . . Unknown Exits Taken 1 | 1 . Scrap Searched . | . . Spaces Dug . | . . Terrain Destroyed . | . . Melee . | . . Projectile . | . . AOE . | . . Terrain Rammed . | . . Walls Destroyed . | . . Machines Disabled . | . . Actions | -11 -10 --------- Run | Jun Mat Total 809 | 307 502 Wait 399 | 126 273 Move 325 | 147 178 Hop . | . . Pick Up 13 | 10 3 Fast Attach . | . . Attach 14 | 8 6 Detach 1 | 1 . Swap . | . . Drop 1 | . 1 Fire 33 | 15 18 Melee . | . . Ram . | . . Kick . | . . Crush 23 | . 23 Escape Stasis . | . . Rewire . | . . Trap . | . . Miscellaneous . | . . Route ------- -11/Junkyard -10/Materials History --------- Turn | Location | Event 9 | -11/Junkyard | Discovered new exit (range 15) 379 | -11/Junkyard | Entered Materials 380 | -10/Materials | Build established: Mutant 949 | -10/Materials | Core integrity fell below 50% 991 | -10/Materials | Core integrity fell below 20% 995 | -10/Materials | Lost 4 parts (2n1u1w) 1009 | -10/Materials | Destroyed by G-47 Trooper with Particle Gun Last Messages --------------- 00958_ Med. Laser destroyed. 00958_ Slammed into G-47 Trooper. 00959_ ALERT: Hostiles spotted, dispatching reinforcements to Terminal M007. 00963_ M-13 Machinist repairs G-47 Trooper. 00964_ Lgt. Treads destroyed. 00964_ Imp. Terrain Scanner destroyed. 00973_ Acquired 5 matter. 00975_ R-06 Scavenger collects Aluminum Leg. 00983_ Critical hit (Burn: +37). 00996_ Triggered Blade Trap. 00996_ Massive razor-sharp blades shoot up from within the floor. 00996_ Aluminum Leg severed. 00996_ Ion Engine severed. 00998_ Acquired Ion Engine. 01000_ Triggered Blade Trap. 01000_ Massive razor-sharp blades shoot up from within the floor. 01000_ Acquired Aluminum Leg. 01004_ U-05 Engineer lays Concrete. 01008_ R-06 Scavenger collects Aluminum Leg. Map ----- +----------------------------------------------------+ | ????? ??# ??????????????? ?????? | | ????????+ ? ????????????? ?????? | | ????????# #?????"?#?????? ?????? | | ????????# #?????????????? ?????? | | ????????# #?????? ??????? #????? | | ????????# #????????#????# #????? | | ????????# #??#??#?#?##??# #????? | | ????????# ##??????####### #????# | | ????? ?## ###????##!!!!## #??### | | ??? ???# #??#??#! !# #? | | ???????# #?????# # # """ | | ?????" + %%%#######%% # # ""?? | | ???????# %%%%%%% % %% + """? | | ???????# %%%##### %%%##### # ? | | ???????## %%######+##+##### #?? | | ????????# # #?# #???#? | | ????????# + #?# #????? | | ????????# gr# ### #????? | | ????? ??#^^g# #?# #????? | | #??????## # #?# #??#?? | | ??#????## u # ### #????? | | #???????# # #?# #?#??? | | ???##???# #############?# #????? | | ?????#?## ##??#?##????#?# #????? | | #?#????# #?######?????# #??#?? | | ???#??## @ ### ######## ###### | | ???????# | | ???????# ### ############### | | ??#????# #?## ###???#????????? | | ???????###+###### #?##???#???????# | | ??#????# !!## #?????????#?? | | #?#?#??# % ## #???#??????#? | | ######## ## #??#????????? | | # # "" + #???##??????? | | # """ # "Y # #??#?#??????? | | # """ # "" = # #??#????????? | | # """ # + #???????????? | | # #+####### #??##???????? | | # """ # #???##?#????? | | # """ + ##??????????? | | # """ # #??#?#??#?#?? | | # ###+## #?????#?????? | | # """ ##| # ##???#????#?? | | # """ ## # #???????#???? | | # """ ## # #???????????? | | # ## [ # #????????#??? | | ######### ###### #???#???????? | | ???#?#### !###### #?#????#????? | | ????#?### #????#####??????#???#? | | ???????#########?#??#?????????#??? | +----------------------------------------------------+ Best States ------------- Heat Dissipation 25 Energy Generation 10 Energy Capacity 250 Matter Stores 300 Matter Capacity 300 Sight Range 16 Terrain Scan Range 16 Terrain Scan Density 10 Utility Shielding 33 Evasion (%) 55 Recoil Reduction 2 Item Schematics ----------------- None Robot Schematics ------------------ None Fabricated ------------ Nothing Alien Tech Used ----------------- None Achievements -------------- None Challenges ------------ None Game ------ Seed ShockZioniteShockpuncher Manual? 0 Play Time 00:08:52 Cumulative 9.5 hours Start 2023.03.07 @ 23:06:15 End 2023.03.07 @ 23:13:12 Sessions 1 Manual Loads 0 Difficulty Rogue Special Mode None Game No. 17 Rogue 12 Adventurer 5 Explorer 0 Win Type - Total 0 Types 0/0/0/0/0/0/0/0/0 Lore% 13 Gallery% 13 Achievement% 11 Wizard Run 0 Options --------- ASCII 0 Keyboard 0 Movement Numpad Keybinds 0 Fullscreen 1 Font 18/SmallcapsGlow Map View 76x50 Tactical HUD 1 Map Filters NONE Filters NONE Steam 1 RUN: 58b97112-1560-4342-b0ff-66e842602fb7